{"text_format":"1","workbook":"xlsx","n_sheets":6,"sheets":["Nápověda","Menu","Test","Databáze otázek","Formátování","Kód testu"],"not_rendered":{"charts":0,"images":3,"macros":1,"external_links":0,"defined_names":4,"comments":0,"pivot_tables":0},"unopened":[{"sheet":"Formátování","index":4,"reason":"part_missing"},{"sheet":"Kód testu","index":5,"reason":"part_missing"}],"bounds":{"document_bytes":16777216,"sheet_cells":100000,"rows_first":2000,"rows_last":500,"rows_between":2000,"halvings":0,"cell_chars":16384,"cell_head_chars":4096},"cells_cut":0,"cells_raw":0,"read":"whole","date_system":"1900"}

{"sheet":"Nápověda","index":0,"n_rows":6,"n_cols":2,"rows_kept":6,"cut":false,"hidden":false,"merged":[]}
[]
[null,"Ovládanie programu:"]
[]
[null,"Program sa ovláda pomocou myši. "]
[null,"Menu - zobrazí úvodnú obrazovku"]
[null,"Ukončenie programu sa uskutočňuje z menu na úvodnéj obrazovke tlačítkom Koniec. "]

{"sheet":"Menu","index":1,"n_rows":1,"n_cols":1,"rows_kept":1,"cut":false,"hidden":false,"merged":[]}
["os"]

{"sheet":"Test","index":2,"n_rows":50,"n_cols":18,"rows_kept":50,"cut":false,"hidden":false,"merged":[]}
[{"$f":"K1","v":1},{"$f":"L1","v":"Koľko kníh napísal Vojtech Zamarovský?"},1,"Koľko kníh napísal Vojtech Zamarovský?",20,14,7,30,"Koľko kníh napísal Vojtech Zamarovský?14",2,1,"Koľko kníh napísal Vojtech Zamarovský?",20,14,7,30,"Koľko kníh napísal Vojtech Zamarovský?14",2]
[{"$f":"CONCATENATE(\"Celkem \",K2,\" otázek\")","v":"Celkem 50 otázek"},null,2,"Ktorý z nasledujúcich autorov bol organizátorom Slovenského kultúrneho života?","M. Ďuríčková","J. G. Tajovský","Ján Smrek","J.Gregor","Ktorý z nasledujúcich autorov bol organizátorom Slovenského kultúrneho života?Ján Smrek",3,50]
[null,{"$f":"M1","v":20},3,"Aké dielo napísala Nataša Tanská?","Na počiatku bol Sumer","Lupienky z jabloní, Puf a Muf","Puf a Muf, Vyznáte sa v tlačenici-úvod do šťukológie","Traja pátrači","Aké dielo napísala Nataša Tanská?Puf a Muf, Vyznáte sa v tlačenici-úvod do šťukológie",3]
[{"$f":"R1","v":2},{"$f":"N1","v":14},4,"Socha morskej víly na počesť H. CH. Andersena sa nachádza v meste:______","Kodaň","Amsterdam","Berlín","Paríž","Socha morskej víly na počesť H. CH. Andersena sa nachádza v meste:Kodaň",1]
[null,{"$f":"O1","v":7},5,"Čo nenapísal Karel Čapek?","Záživné hlubiny, Krakonošova záhrada","Bílá nemoc, Adam stvoriteľ","Záživé hlubiny, Studňa","neviem","Čo nenapísal Karel Čapek?Záživé hlubiny, Studňa",3]
[null,{"$f":"P1","v":30},6,"Čo nie je charakteristické pre drámu?","vznikla v starovekom Grécku","vyvinula sa z dialógu herca a zboru ","postavy zo skromných pomerov, šťastné rozuzlenie","neviem","Čo nie je charakteristické pre drámu?postavy zo skromných pomerov, šťastné rozuzlenie",3]
["21:49:10",null,7,"R. Móric nenapísal:__________","Život je biely","Kukučia rozprávka","O divej kačičke","O troch prasiatkách","R. Móric nenapísal:Život je biely",1]
[0,"Správnych odpovedí",8,"V ktorom z talianskych miest sa odohral príbeh zaľúbencov z diela Rómeo a Júlia?","Benátky","Verona","Milano","Rím","V ktorom z talianskych miest sa odohral príbeh zaľúbencov z diela Rómeo a Júlia?Verona",2]
[0,"Nesprávnych odpovedí",9,"V ktorom riadku sa nachádzajú len drámy?_________","Rómeo a Júlia, Žltá ľalia, Božský súboj alebo Poručík","Rómeo a Júlia, Ženský zákon, Herodes a Herodias","Vyznanie, Cesta okolo sveta za 80 dní, Dva medvede","neviem...","V ktorom riadku sa nachádzajú len drámy?Rómeo a Júlia, Ženský zákon, Herodes a Herodias",2]
[null,null,10,"Akého žánru bolo dielo Robinson Crusoe?","rozprávka","western","robinsonáda","roman","Akého žánru bolo dielo Robinson Crusoe?robinsonáda",3]
[{"$f":"IF(A8<>0,A8/(A8+A9),0)","v":0},"Úspešnosť",11,"Načo reagoval K.Čapek v diele R.U.R?","prudký rozvoj vedy a techniky","detský sen mať robota","dúfal, že v budúcnosti Zem ovládnu roboti ","bol fanišikom Sci-Fi","Načo reagoval K.Čapek v diele R.U.R?prudký rozvoj vedy a techniky",1]
["Okruh:","Literatúra",12,"Kto napísal Psíček a Mačička?","V. Zamarovský","K. Čapek","N. Tanská","M. Figuli","Kto napísal Psíček a Mačička?K. Čapek",2]
[null,{"$f":"CONCATENATE(\"Celkom \",K2,\" otázok.\")","v":"Celkom 50 otázok."},13,"S čím bola úzko spätá J. Bottova poézia?","symbolizmus","ľudová slovesnosť","naturalizmus","romantizmus","S čím bola úzko spätá J. Bottova poézia?ľudová slovesnosť",2]
[null,null,14,"Podľa koho bola pomenovaná postava Hamleta?","podľa Shakespearovho syna","podľa Shakespeara","podľa najlepšieho priateľa Shakespeara","podľa otca Shakespeara","Podľa koho bola pomenovaná postava Hamleta?podľa Shakespearovho syna",1]
[null,null,15,"Čo nie je znakom romantizmu?","túžba po slobode","uprednostňovali realitu","odmietavá reakcia na osvietenstvo","spoločenský protest","Čo nie je znakom romantizmu?uprednostňovali realitu",2]
[null,null,16,"Vlastným menom Braxatoris sa volal: __________","P. O. Hviezdoslav","J. C. Hronský","A. Sládkovič","D. Hevier ","Vlastným menom Braxatoris sa volal:A. Sládkovič",3]
[null,null,17,"Ktoré z diel Sama Chalupku nepatrí do jeho básnickej zbierky Spevy:______","Mor ho!","Branko","Kráľoholská","Marína","Ktoré z diel Sama Chalupku nepatrí do jeho básnickej zbierky Spevy:Mor ho!",1]
[null,null,18,"Akým vyslancom je Thomas Brezina?","UNICEF","WWF","OSN","NBA","Akým vyslancom je Thomas Brezina?UNICEF",1]
[null,null,19,"S kým tvoril dvojicu Július Satinský?","J. Filip","M. Lasica","Š. Skrúcaný","M. Noga","S kým tvoril dvojicu Július Satinský?M. Lasica",2]
[null,null,20,"Ktoré z tvorby J. Hollého sú eposy?","Svätopluk, Cyrilo-Metodiada","Selanky ,Básne","Korešpondencia J. Hollého","Poviedky a básne","Ktoré z tvorby J. Hollého sú eposy?Svätopluk, Cyrilo-Metodiada",1]
[null,null,21,"Najslávnejšia kniha L. Carrola:_______","Pán Prsteňov","Snehová kráľovná","Alica v krajine zázrakov","Strátený svet","Najslávnejšia kniha L. Carrola:Alica v krajine zázrakov",3]
[null,null,22,"Dielo Moje deti bolo:__________","denník","roman","poviedka","báseň","Dielo Moje deti bolo:denník",1]
[null,null,23,"Najznámejší slovenský zberateľ rozprávok:_______","P. Dobšinský","A. Sládkovič","F. Hečko","J. Verne","Najznámejší slovenský zberateľ rozprávok:P. Dobšinský",1]
[null,null,24,"Koľko kníh napísal Vojtech Zamarovský?",42,20,15,14,"Koľko kníh napísal Vojtech Zamarovský?14",4]
[null,null,25,"Ktoré 2 znepriatelené rody vystupujú v tragédii Rómeo a Júlia?","Montecchiovci a Capulettovci","Pálfyovci a Montecchiovci","Habsburgovci a Capulettovci","Capulettovci a Miazgovci","Ktoré 2 znepriatelené rody vystupujú v tragédii Rómeo a Júlia?Montecchiovci a Capulettovci",1]
[null,null,26,"Kto napísal knihu Konor, malý psík s veľkým menom?","M. Kukučín","F. Hečko","D. Hevier","M. Figuli","Kto napísal knihu Konor, malý psík s veľkým menom?D. Hevier",3]
[null,null,27,"M. Figuli neprispievala do časopisu:___________","Slovenské pohľady","Elán","Smena","Denník Smena","M. Figuli neprispievala do časopisu:Denník Smena",4]
[null,null,28,"Koľko kníh napísal Vojtech Zamarovský?",42,20,15,14,"Koľko kníh napísal Vojtech Zamarovský?15",4]
[null,null,29,"Jeden z autorov realizmu:____________","M. Kukučín","Ľ. Ondrejov","J. Smrek","J. Verne","Jeden z autorov realizmu:M. Kukučín",1]
[null,null,30,"Vyber ktoré diela napísal Ľ. Štúr","Náuka reči slovenskej, Nárečja slovenskô","Spevy a piesne, Marína","Básnická zbierka, Milkov hrob","Záživné hlubiny, Krakonošova záhrada","Vyber ktoré diela napísal Ľ. ŠtúrNáuka reči slovenskej, Nárečja slovenskô",1]
[null,null,31,"V Prahe študoval(a):__________","Mária Ďuríčková","Margita Figuli","Jaroslava Blažková","Daniel Hevier","V Prahe študoval(a):Jaroslava Blažková",3]
[null,null,32,"Čo nenapísal Kalinčiak?","Marína","Bozkovci","Púť lásky","Zverokruh","Čo nenapísal Kalinčiak?Marína",1]
[null,null,33,"Ktorý z nasledujúcich autorov získal Nobelovú cenu?","D. Defoe","E. Hemingway","J. Verne","E.M. Remarque","Ktorý z nasledujúcich autorov získal Nobelovú cenu?E. Hemingway",3]
[null,null,34,"Kto písal eposy?","W. Shakespeare","E. M. Šoltésová","J. Hollý","N. Tanská","Kto písal eposy?J. Hollý",3]
[null,null,35,"Medzi Shakespearové komédie nepatri ________","Veselé panie windsorské","Hamlet","Oko za oko","Lady Macbet","Medzi Shakespearové komédie nepatri:Hamlet",2]
[null,null,36,"Kde sa narodil J. Kráľ?","Terchová","Martin","Liptovský Mikuláš","Levice","Kde sa narodil J. Kráľ?Liptovský Mikuláš",3]
[null,null,37,"Najprekladanejšou slovenskou autorkov (Hrdinský zápisník) bola:_______","J. Blažková","M. Ďuríčková","K. Jarunková","M. Figuli","Najprekladanejšou slovenskou autorkov (Hrdinský zápisník) bola:K. Jarunková",3]
[null,null,38,"Aký žáner písal Ezop?","bájky","báje","povesti","novely","Aký žáner písal Ezop?bájky",1]
[null,null,39,"Dielo Pán Prsteňov od J. R. R. Tolkiena má:________","5 dielov","3 diely","2 diely","4 diely","Dielo Pán Prsteňov od J. R. R. Tolkiena má:3 diely",2]
[null,null,40,"Kde sa narodil D. Defoe:_________","Paríž","Londýn","Viedeň","Amsterdam","Kde sa narodil D. Defoe:Londýn",2]
[null,null,41,"Štúrovskí básnici:_________","J. Kalinčiak, J. Kráľ, M. Rúfus","A. Sládkovič, J. M. Hurban, J. Matuška","J. Botto, P. O. Hviezdoslav, S. Tomašík","I. Krasko, E. M. Šoltésová, Ľ. Ondrejov","Štúrovskí básnici: A. Sládkovič, J. M. Hurban, J. Matuška",2]
[null,null,42,"Do akého obdobia zaraďujeme Ľuda Ondrejova?","naturalizmus","romantizmus","realizmus","futurizmus","37. Do akého obdobia zaraďujeme Ľuda Ondrejova?naturalizmus",1]
[null,null,43,"Aké sú 2 najznámejšie postavy z detektívok A. Christie?","Bolek a Lolek","Hercule Poirot, slečna Marplová","Rómeo a Júlia","slečna Marplová a Adrián Moll","Aké sú 2 najznámejšie postavy z detektívok A. Christie?Hercule Poirot, slečna Marplová",2]
[null,null,44,"Vlastným menom Ján Botto sa volal:__________","Ľudoví Štúr","Ján Smrek","Ivan Krasko","Andrej Sládkovič","Vlastným menom Ján Botto sa volal:Ivan Krasko",3]
[null,null,45,"M. Ďuríčková uverejňovať svoje diela v časopisoch:______","Zornička a Ohník","Orol tatranský","Slovenské pohľady","Sokol","M. Ďuríčková uverejňovať svoje diela v časopisoch:Zornička a Ohník",1]
[null,null,46,"A. de Saint Exupéry zahynul:____________","pri autonehode","pri havarii lietadla","na lodi","pri zoskoku s padakom","A. de Saint Exupéry zahynul:pri havarii lietadla",2]
[null,null,47,"J. Matuška napísal:________","Z jabloni","Modlitbičky","Básne","Nad Tatrou sa blýska","J. Matuška napísal:Nad Tatrou sa blýska",4]
[null,null,48,"Vyber odpoveď, kde sú len komédie:","Kráľ Lear, Othelo, Dvojica šľachtíc z Verony","Oko za oko, Kupec benátsky, Skrotenie zlej ženy","Sen noci svetojánskej, Hamlet, Rómeo a Júlia","Hamlet, Oko za oko, Othelo","Vyber odpoveď, kde sú len komédie:Oko za oko, Kupec benátsky, Skrotenie zlej ženy",2]
[null,null,49,"Čo napísal J. Verne?","Cesta okolo sveta za 80 dní, Cesta do stredu Zeme, Deti kapitána Granta","15-ročný kapitán, Slnko aj vychádza, Zlatá sieť","Cesta na Mesiac, Mať a nemať, Čierny slnovrat","neviem","30. Čo napísal J. Verne?Cesta okolo sveta za 80 dní, Cesta do stredu Zeme, Deti kapitána Granta",1]
[null,null,50,"J. Blažková napísala:________","Môj skvelý brat Robinzon, Nylonový mesiac","Ostrov kapitána Hašašara, Starec a more","Minka a pyžamka, Opustená","neviem:-)","J. Blažková napísala:Môj skvelý brat Robinzon, Nylonový mesiac",1]

{"sheet":"Databáze otázek","index":3,"n_rows":51,"n_cols":14,"rows_kept":51,"cut":false,"hidden":false,"merged":[]}
["Název okruhu otázek","Gramatický jev","číslo otázky","znění otázky","a)","b)","c)","d)","Správná odpověď","kód spr. odpovědi","Dostupné okruhy otázek","Zvolený okruh","Zvolený počet otázek","Počet otázek v okruhu"]
["Literatúra","Fakty",1,"Jeden z autorov realizmu:____________","M. Kukučín","Ľ. Ondrejov","J. Smrek","J. Verne","Jeden z autorov realizmu:M. Kukučín",1,{"$f":"A2","v":"Literatúra"},1,50]
["Literatúra","Fakty",2,"Štúrovskí básnici:_________","J. Kalinčiak, J. Kráľ, M. Rúfus","A. Sládkovič, J. M. Hurban, J. Matuška","J. Botto, P. O. Hviezdoslav, S. Tomašík","I. Krasko, E. M. Šoltésová, Ľ. Ondrejov","Štúrovskí básnici: A. Sládkovič, J. M. Hurban, J. Matuška",2,{"$f":"A52","v":0},{"$f":"IF(L2>1,L2*50*POWER(1,(L2-1))-49,1)","v":1}]
["Literatúra","Fakty",3,"Socha morskej víly na počesť H. CH. Andersena sa nachádza v meste:______","Kodaň","Amsterdam","Berlín","Paríž","Socha morskej víly na počesť H. CH. Andersena sa nachádza v meste:Kodaň",1,{"$f":"A102","v":0}]
["Literatúra","Fakty",4,"Medzi Shakespearové komédie nepatri ________","Veselé panie windsorské","Hamlet","Oko za oko","Lady Macbet","Medzi Shakespearové komédie nepatri:Hamlet",2,{"$f":"A152","v":0}]
["Literatúra","Fakty",5,"Vlastným menom Braxatoris sa volal: __________","P. O. Hviezdoslav","J. C. Hronský","A. Sládkovič","D. Hevier ","Vlastným menom Braxatoris sa volal:A. Sládkovič",3,{"$f":"A202","v":0}]
["Literatúra","Fakty",6,"M. Figuli neprispievala do časopisu:___________","Slovenské pohľady","Elán","Smena","Denník Smena","M. Figuli neprispievala do časopisu:Denník Smena",4,{"$f":"A252","v":0}]
["Literatúra","Fakty",7,"R. Móric nenapísal:__________","Život je biely","Kukučia rozprávka","O divej kačičke","O troch prasiatkách","R. Móric nenapísal:Život je biely",1,{"$f":"A302","v":0}]
["Literatúra","Fakty",8,"A. de Saint Exupéry zahynul:____________","pri autonehode","pri havarii lietadla","na lodi","pri zoskoku s padakom","A. de Saint Exupéry zahynul:pri havarii lietadla",2,{"$f":"A352","v":0}]
["Literatúra","Fakty",9,"Dielo Moje deti bolo:__________","denník","roman","poviedka","báseň","Dielo Moje deti bolo:denník",1,{"$f":"A402","v":0}]
["Literatúra","Fakty",10,"V Prahe študoval(a):__________","Mária Ďuríčková","Margita Figuli","Jaroslava Blažková","Daniel Hevier","V Prahe študoval(a):Jaroslava Blažková",3,{"$f":"A452","v":0}]
["Literatúra","Fakty",11,"Vlastným menom Ján Botto sa volal:__________","Ľudoví Štúr","Ján Smrek","Ivan Krasko","Andrej Sládkovič","Vlastným menom Ján Botto sa volal:Ivan Krasko",3]
["Literatúra","Fakty",12,"Dielo Pán Prsteňov od J. R. R. Tolkiena má:________","5 dielov","3 diely","2 diely","4 diely","Dielo Pán Prsteňov od J. R. R. Tolkiena má:3 diely",2]
["Literatúra","Fakty",13,"J. Blažková napísala:________","Môj skvelý brat Robinzon, Nylonový mesiac","Ostrov kapitána Hašašara, Starec a more","Minka a pyžamka, Opustená","neviem:-)","J. Blažková napísala:Môj skvelý brat Robinzon, Nylonový mesiac",1]
["Literatúra","Fakty",14,"J. Matuška napísal:________","Z jabloni","Modlitbičky","Básne","Nad Tatrou sa blýska","J. Matuška napísal:Nad Tatrou sa blýska",4]
["Literatúra","Fakty",15,"Najslávnejšia kniha L. Carrola:_______","Pán Prsteňov","Snehová kráľovná","Alica v krajine zázrakov","Strátený svet","Najslávnejšia kniha L. Carrola:Alica v krajine zázrakov",3]
["Literatúra","Fakty",16,"Najprekladanejšou slovenskou autorkov (Hrdinský zápisník) bola:_______","J. Blažková","M. Ďuríčková","K. Jarunková","M. Figuli","Najprekladanejšou slovenskou autorkov (Hrdinský zápisník) bola:K. Jarunková",3]
["Literatúra","Fakty",17,"Najznámejší slovenský zberateľ rozprávok:_______","P. Dobšinský","A. Sládkovič","F. Hečko","J. Verne","Najznámejší slovenský zberateľ rozprávok:P. Dobšinský",1]
["Literatúra","Fakty",18,"M. Ďuríčková uverejňovať svoje diela v časopisoch:______","Zornička a Ohník","Orol tatranský","Slovenské pohľady","Sokol","M. Ďuríčková uverejňovať svoje diela v časopisoch:Zornička a Ohník",1]
["Literatúra","Fakty",19,"Ktoré z diel Sama Chalupku nepatrí do jeho básnickej zbierky Spevy:______","Mor ho!","Branko","Kráľoholská","Marína","Ktoré z diel Sama Chalupku nepatrí do jeho básnickej zbierky Spevy:Mor ho!",1]
["Literatúra","Fakty",20,"Kde sa narodil D. Defoe:_________","Paríž","Londýn","Viedeň","Amsterdam","Kde sa narodil D. Defoe:Londýn",2]
["Literatúra","Fakty",21,"Akého žánru bolo dielo Robinson Crusoe?","rozprávka","western","robinsonáda","roman","Akého žánru bolo dielo Robinson Crusoe?robinsonáda",3]
["Literatúra","Fakty",22,"V ktorom riadku sa nachádzajú len drámy?_________","Rómeo a Júlia, Žltá ľalia, Božský súboj alebo Poručík","Rómeo a Júlia, Ženský zákon, Herodes a Herodias","Vyznanie, Cesta okolo sveta za 80 dní, Dva medvede","neviem...","V ktorom riadku sa nachádzajú len drámy?Rómeo a Júlia, Ženský zákon, Herodes a Herodias",2]
["Literatúra","Fakty",23,"Aké sú 2 najznámejšie postavy z detektívok A. Christie?","Bolek a Lolek","Hercule Poirot, slečna Marplová","Rómeo a Júlia","slečna Marplová a Adrián Moll","Aké sú 2 najznámejšie postavy z detektívok A. Christie?Hercule Poirot, slečna Marplová",2]
["Literatúra","Fakty",24,"Ktorý z nasledujúcich autorov bol organizátorom Slovenského kultúrneho života?","M. Ďuríčková","J. G. Tajovský","Ján Smrek","J.Gregor","Ktorý z nasledujúcich autorov bol organizátorom Slovenského kultúrneho života?Ján Smrek",3]
["Literatúra","Fakty",25,"Ktorý z nasledujúcich autorov získal Nobelovú cenu?","D. Defoe","E. Hemingway","J. Verne","E.M. Remarque","Ktorý z nasledujúcich autorov získal Nobelovú cenu?E. Hemingway",2]
["Literatúra","Fakty",26,"Ktoré 2 znepriatelené rody vystupujú v tragédii Rómeo a Júlia?","Montecchiovci a Capulettovci","Pálfyovci a Montecchiovci","Habsburgovci a Capulettovci","Capulettovci a Miazgovci","Ktoré 2 znepriatelené rody vystupujú v tragédii Rómeo a Júlia?Montecchiovci a Capulettovci",1]
["Literatúra","Fakty",27,"Kde sa narodil J. Kráľ?","Terchová","Martin","Liptovský Mikuláš","Levice","Kde sa narodil J. Kráľ?Liptovský Mikuláš",3]
["Literatúra","Fakty",28,"Čo nenapísal Kalinčiak?","Marína","Bozkovci","Púť lásky","Zverokruh","Čo nenapísal Kalinčiak?Marína",1]
["Literatúra","Fakty",29,"Čo napísal J. Verne?","Cesta okolo sveta za 80 dní, Cesta do stredu Zeme, Deti kapitána Granta","15-ročný kapitán, Slnko aj vychádza, Zlatá sieť","Cesta na Mesiac, Mať a nemať, Čierny slnovrat","neviem","30. Čo napísal J. Verne?Cesta okolo sveta za 80 dní, Cesta do stredu Zeme, Deti kapitána Granta",1]
["Literatúra","Fakty",30,"Aký žáner písal Ezop?","bájky","báje","povesti","novely","Aký žáner písal Ezop?bájky",1]
["Literatúra","Fakty",31,"Kto napísal Psíček a Mačička?","V. Zamarovský","K. Čapek","N. Tanská","M. Figuli","Kto napísal Psíček a Mačička?K. Čapek",2]
["Literatúra","Fakty",32,"Aké dielo napísala Nataša Tanská?","Na počiatku bol Sumer","Lupienky z jabloní, Puf a Muf","Puf a Muf, Vyznáte sa v tlačenici-úvod do šťukológie","Traja pátrači","Aké dielo napísala Nataša Tanská?Puf a Muf, Vyznáte sa v tlačenici-úvod do šťukológie",3]
["Literatúra","Fakty",33,"Kto napísal knihu Konor, malý psík s veľkým menom?","M. Kukučín","F. Hečko","D. Hevier","M. Figuli","Kto napísal knihu Konor, malý psík s veľkým menom?D. Hevier",3]
["Literatúra","Fakty",34,"S kým tvoril dvojicu Július Satinský?","J. Filip","M. Lasica","Š. Skrúcaný","M. Noga","S kým tvoril dvojicu Július Satinský?M. Lasica",2]
["Literatúra","Fakty",35,"Koľko kníh napísal Vojtech Zamarovský?",20,14,7,30,"Koľko kníh napísal Vojtech Zamarovský?14",2]
["Literatúra","Fakty",36,"Do akého obdobia zaraďujeme Ľuda Ondrejova?","naturalizmus","romantizmus","realizmus","futurizmus","37. Do akého obdobia zaraďujeme Ľuda Ondrejova?naturalizmus",1]
["Literatúra","Fakty",37,"Akým vyslancom je Thomas Brezina?","UNICEF","WWF","OSN","NBA","Akým vyslancom je Thomas Brezina?UNICEF",1]
["Literatúra","Fakty",38,"Čo nenapísal Karel Čapek?","Záživné hlubiny, Krakonošova záhrada","Bílá nemoc, Adam stvoriteľ","Záživé hlubiny, Studňa","neviem","Čo nenapísal Karel Čapek?Záživé hlubiny, Studňa",3]
["Literatúra","Fakty",39,"Čo nie je znakom romantizmu?","túžba po slobode","uprednostňovali realitu","odmietavá reakcia na osvietenstvo","spoločenský protest","Čo nie je znakom romantizmu?uprednostňovali realitu",2]
["Literatúra","Fakty",40,"Ktoré z tvorby J. Hollého sú eposy?","Svätopluk, Cyrilo-Metodiada","Selanky ,Básne","Korešpondencia J. Hollého","Poviedky a básne","Ktoré z tvorby J. Hollého sú eposy?Svätopluk, Cyrilo-Metodiada",1]
["Literatúra","Fakty",41,"S čím bola úzko spätá J. Bottova poézia?","symbolizmus","ľudová slovesnosť","naturalizmus","romantizmus","S čím bola úzko spätá J. Bottova poézia?ľudová slovesnosť",2]
["Literatúra","Fakty",42,"Vyber ktoré diela napísal Ľ. Štúr","Náuka reči slovenskej, Nárečja slovenskô","Spevy a piesne, Marína","Básnická zbierka, Milkov hrob","Záživné hlubiny, Krakonošova záhrada","Vyber ktoré diela napísal Ľ. ŠtúrNáuka reči slovenskej, Nárečja slovenskô",1]
["Literatúra","Fakty",43,"Čo nie je charakteristické pre drámu?","vznikla v starovekom Grécku","vyvinula sa z dialógu herca a zboru ","postavy zo skromných pomerov, šťastné rozuzlenie","neviem","Čo nie je charakteristické pre drámu?postavy zo skromných pomerov, šťastné rozuzlenie",3]
["Literatúra","Fakty",44,"Načo reagoval K.Čapek v diele R.U.R?","prudký rozvoj vedy a techniky","detský sen mať robota","dúfal, že v budúcnosti Zem ovládnu roboti ","bol fanišikom Sci-Fi","Načo reagoval K.Čapek v diele R.U.R?prudký rozvoj vedy a techniky",1]
["Literatúra","Fakty",45,"V ktorom z talianskych miest sa odohral príbeh zaľúbencov z diela Rómeo a Júlia?","Benátky","Verona","Milano","Rím","V ktorom z talianskych miest sa odohral príbeh zaľúbencov z diela Rómeo a Júlia?Verona",2]
["Literatúra","Fakty",46,"Vyber odpoveď, kde sú len komédie:","Kráľ Lear, Othelo, Dvojica šľachtíc z Verony","Oko za oko, Kupec benátsky, Skrotenie zlej ženy","Sen noci svetojánskej, Hamlet, Rómeo a Júlia","Hamlet, Oko za oko, Othelo","Vyber odpoveď, kde sú len komédie:Oko za oko, Kupec benátsky, Skrotenie zlej ženy",2]
["Literatúra","Fakty",47,"Kto písal eposy?","W. Shakespeare","E. M. Šoltésová","J. Hollý","N. Tanská","Kto písal eposy?J. Hollý",3]
["Literatúra","Fakty",48,"Podľa koho bola pomenovaná postava Hamleta?","podľa Shakespearovho syna","podľa Shakespeara","podľa najlepšieho priateľa Shakespeara","podľa otca Shakespeara","Podľa koho bola pomenovaná postava Hamleta?podľa Shakespearovho syna",1]
["Literatúra","Fakty",49,"Koľko kníh napísal Vojtech Zamarovský?",42,20,15,14,"Koľko kníh napísal Vojtech Zamarovský?14",4]
["Literatúra","Fakty",50,"Koľko kníh napísal Vojtech Zamarovský?",42,20,15,14,"Koľko kníh napísal Vojtech Zamarovský?14",4]